bitfinex/quotes_ETHUSD_20241223
["timestamp","ask_amount","ask_price","bid_price","bid_amount"]
[1734985554477,0.922924,3361.1,3360.1,2.97605]
[1734985554828,0.7605,3360.6,3359.7,2.97638]
[1734985555037,0.7605,3360.6,3359.4,2.97671]
[1734985555038,3.1021823,3360.5,3359.4,2.97671]
[1734985555211,0.55,3360.3,3359.8,0.04341735]
[1734985555383,0.55,3360.3,3359.1,0.7882]
[1734985555582,0.55,3360.3,3359.1,3.7651]
[1734985555839,0.7605,3360.0,3359.2,0.04414425]
[1734985556132,0.7605,3360.0,3358.8,2.9772]
[1734985556358,0.7605,3360.0,3359.3,0.04402308]
[1734985556515,0.7605,3360.0,3358.9,0.37654]
[1734985556824,0.7605,3360.0,3359.4,0.04390192]
[1734985557041,0.7605,3360.0,3358.9,0.37654]
[1734985557182,0.7605,3360.0,3359.0,0.0443866]
[1734985557532,0.7605,3360.0,3358.9,2.9771]
[1734985557830,0.7605,3360.0,3359.1,0.04426542]
[1734985558143,0.7605,3360.0,3359.3,2.97678]
[1734985558492,0.7605,3360.0,3359.5,2.97658]
[1734985558909,0.7605,3360.0,3359.6,0.04365962]
[1734985559479,0.7605,3360.0,3359.7,2.97644]
[1734985559682,0.7605,3360.0,3359.7,3.01997848]
[1734985560124,0.7605,3360.0,3359.7,0.04353848]
[1734985560509,0.7605,3360.0,3359.5,2.9766]
[1734985560713,0.7605,3360.0,3359.8,0.04341735]
[1734985560919,0.7605,3360.0,3359.5,2.9766]
[1734985561214,0.7605,3360.0,3359.9,0.04329623]
[1734985561437,0.7605,3360.0,3359.2,2.97681]
[1734985561757,1.134154,3360.0,3359.9,0.04329623]
[1734985561906,1.134154,3360.0,3359.2,2.97681]
[1734985562414,1.134154,3360.0,3359.3,0.04402308]
[1734985562600,1.134154,3360.0,3359.2,2.97681]
[1734985562801,0.7605,3360.0,3359.3,2.97678]
[1734985563115,2.97611,3360.1,3359.4,0.04390192]
[1734985563317,2.97611,3360.1,3359.0,2.97705]
[1734985563318,1.23907463,3360.4,3359.5,0.8309]
[1734985563521,1.23907463,3360.4,3359.7,2.97638]
[1734985563831,0.8026,3360.3,3359.8,0.04439838]
[1734985564053,3.77853,3360.3,3359.2,2.97688]
[1734985564372,0.8026,3359.8,3358.3,2.97769]
[1734985564671,0.8026,3359.8,3358.4,0.0441776]
[1734985564830,0.8026,3359.8,3358.7,2.97725]
[1734985565034,0.8026,3359.8,3359.1,2.97691]
[1734985565462,0.8026,3359.8,3359.2,3.025644]
[1734985565769,0.8026,3359.8,3359.2,0.048774]
[1734985565982,0.55,3359.9,3359.2,0.821674]
[1734985566268,3.52689,3359.3,3358.2,2.97776]
[1734985566563,1.48549268,3359.2,3357.8,4.21802084]
[1734985566771,0.8314,3359.2,3358.7,2.9773]
[1734985567066,0.8314,3359.2,3357.8,1.23990084]
[1734985567067,0.8314,3359.2,3358.8,2.97717]
[1734985567249,0.8314,3359.2,3358.3,0.7729]
[1734985567460,0.8314,3359.2,3358.7,2.97732]
[1734985568118,0.8314,3359.2,3358.9,2.97714]
[1734985568323,0.8314,3359.2,3358.8,0.04383941]
[1734985568538,0.7528,3359.7,3359.1,2.97698]
[1734985568896,0.7528,3359.7,3358.7,2.97731]
[1734985569068,0.7528,3359.7,3358.4,0.02976898]
[1734985569369,0.7528,3359.7,3359.3,2.97673]
[1734985570262,0.7528,3359.7,3359.4,2.97672]
[1734985571229,0.7528,3359.7,3359.1,2.9769]
[1734985571442,0.7528,3359.7,3359.2,0.04335467]
[1734985571972,0.7528,3359.7,3359.3,2.9768]
[1734985572127,0.7528,3359.7,3359.3,3.27881547]
[1734985572519,0.7528,3359.7,3359.3,0.30201547]
[1734985572857,1.3748,3360.1,3359.4,2.9767]
[1734985573371,1.3748,3360.1,3359.6,2.97654]
[1734985573569,0.8248,3360.1,3359.7,2.97644]
[1734985573721,0.8248,3360.1,3359.9,2.97621]
[1734985573916,0.8248,3360.1,3360.0,2.97619]
[1734985574471,1.24630794,3360.3,3360.2,2.97601]
[1734985574622,1.24630794,3360.8,3360.1,2.9761]
[1734985574821,1.24630794,3360.8,3360.7,2.97557]
[1734985575149,1.24630794,3360.8,3360.0,0.297619]
[1734985575466,1.24630794,3360.8,3359.7,0.7648]
[1734985575467,1.24630794,3360.8,3360.2,2.976]
[1734985576026,1.24630794,3360.8,3359.7,0.7648]
[1734985576251,0.7509,3360.9,3359.7,0.7648]
[1734985576480,0.7509,3360.9,3360.5,2.97572]
[1734985577061,0.7509,3360.9,3359.7,0.7648]
[1734985577223,0.7509,3360.9,3360.2,2.97599]
[1734985577423,0.7509,3360.9,3360.2,0.297599]
[1734985577651,0.7509,3360.9,3360.4,2.97583]
[1734985577962,0.7509,3360.9,3360.7,2.97553]
[1734985578267,0.168124,3361.1,3360.8,2.97548]
[1734985578422,0.168124,3361.1,3360.2,0.297599]
[1734985578618,0.168124,3361.1,3359.8,2.97636]
[1734985578619,0.168124,3361.1,3359.7,0.7648]
[1734985578823,2.71729012,3361.1,3359.7,0.7648]
[1734985579724,2.71729012,3361.1,3360.1,2.97602]
[1734985580034,2.71729012,3361.1,3360.3,2.9759]
[1734985580974,0.168124,3361.1,3360.9,2.97531]
[1734985581275,0.168124,3361.1,3360.4,2.97576]
[1734985581967,0.168124,3361.1,3360.7,2.97555]
[1734985582577,0.168124,3361.1,3360.5,3.273286]
[1734985582926,0.168124,3361.1,3360.6,2.97559]
[1734985583127,0.168124,3361.1,3360.5,0.297576]
[1734985583360,0.168124,3361.1,3360.8,2.97548]
[1734985583518,0.168124,3361.1,3360.5,0.297576]
[1734985583722,0.168124,3361.1,3360.3,0.8063]
[1734985583923,0.168124,3361.1,3360.7,2.97548]
[1734985584775,0.168124,3361.1,3361.0,3.7344]
[1734985585276,4e-06,3361.1,3361.0,3.7344]
[1734985586673,4e-06,3361.1,3361.0,3.76414297]
[1734985586973,4e-06,3361.1,3361.0,4.35203433]
[1734985587139,4e-06,3361.1,3361.0,5.08478576]
[1734985587657,4e-06,3361.1,3361.0,4.46715143]
[1734985588140,4e-06,3361.1,3361.0,3.70805143]
[1734985595283,4e-06,3361.1,3361.0,0.73275143]
[1734985595498,4e-06,3361.1,3361.0,2.9753]
[1734985599409,4e-06,3361.1,3361.0,3.00504411]
[1734985599960,0.625,3362.1,3362.0,2.97441]
[1734985600285,1.86946191,3363.1,3362.9,3.72672]
[1734985600480,1.86946191,3363.1,3362.9,4.099392]
[1734985600681,1.86946191,3363.2,3362.9,4.099392]
[1734985601202,7.94e-06,3363.0,3362.9,4.099392]
[1734985602072,0.7767,3363.9,3363.3,2.97325]
[1734985602306,0.7767,3363.9,3362.8,2.97365]
[1734985602307,0.7767,3363.9,3363.1,2.97336]
[1734985602500,0.7767,3363.9,3363.1,2.97335]
[1734985602792,0.7767,3363.9,3363.2,2.97334]
[1734985603203,0.7767,3363.9,3362.4,1.39158668]
[1734985603407,0.7767,3363.9,3363.2,2.97331]
[1734985603706,0.7767,3363.9,3363.2,2.97327]
[1734985604244,3.75725439,3363.4,3362.1,0.3109]
[1734985604545,0.75,3363.4,3362.9,2.97361]
[1734985604843,0.75,3363.4,3362.9,0.297361]
[1734985605150,0.75,3363.4,3363.2,2.97328]
[1734985605451,0.7875,3364.1,3363.3,2.97327]
[1734985605830,0.7875,3364.1,3363.4,2.97316]
[1734985608071,3.76007,3364.1,3362.7,0.60475973]
[1734985608233,0.26052815,3364.4,3362.7,0.60475973]
[1734985608234,0.7656,3363.9,3362.8,0.35785697]
[1734985608431,0.7656,3363.9,3363.4,2.97317]
[1734985608626,0.7656,3363.9,3362.8,0.35785697]
[1734985608972,0.7656,3363.9,3362.7,0.60475973]
[1734985609330,0.7656,3363.9,3362.9,2.97354]
[1734985609530,0.7656,3363.9,3363.0,2.9735]
[1734985610225,0.7656,3363.9,3363.1,2.97344]
[1734985610428,0.7656,3363.9,3362.6,3.5614082]
[1734985610627,1.139417,3363.9,3362.7,0.43251082]
[1734985611771,1.139417,3363.9,3362.9,2.97356]
[1734985612079,3.73837,3363.9,3362.8,2.97368]
[1734985612228,3.73837,3363.9,3362.9,2.97358]
[1734985612430,0.7656,3363.9,3362.9,2.97358]
[1734985612827,0.7656,3363.9,3363.8,2.97282]
[1734985613067,0.26052815,3364.4,3364.3,2.97238]
[1734985613270,0.26052815,3364.4,3364.3,3.269618]
[1734985613861,0.26052815,3364.4,3364.3,0.297238]
[1734985614220,0.26052815,3364.4,3364.3,2.97238]
[1734985616180,0.26052815,3364.4,3363.9,2.97271]
[1734985616181,0.7625,3364.3,3363.9,2.97271]
[1734985616328,0.7625,3364.3,3364.0,2.97259]
[1734985616861,0.7625,3364.3,3363.9,2.9727]
[1734985617189,0.7625,3364.3,3364.0,2.97265]
[1734985617478,0.7625,3364.3,3364.1,2.97256]
[1734985617679,0.26052815,3364.4,3364.1,2.97256]
[1734985618063,0.26052815,3364.4,3364.0,0.297265]
[1734985618269,0.26052815,3364.4,3363.5,0.59434211]
[1734985618454,0.26052815,3364.4,3363.9,2.97269]
[1734985618651,0.26052815,3364.4,3364.0,2.9726]
[1734985619034,0.26052815,3364.4,3363.5,0.59434211]
[1734985619281,0.26052815,3364.4,3363.6,0.02972143]
[1734985619483,0.26052815,3364.4,3363.7,0.36313179]
[1734985620160,0.26052815,3364.4,3363.9,2.97265]
[1734985620664,0.26052815,3364.4,3363.7,2.97291]
[1734985622149,3.23285815,3364.4,3363.2,3.74311]
[1734985622331,0.8284,3364.3,3363.2,3.74311]
[1734985622549,3.80083,3364.3,3363.2,3.74311]
[1734985622749,3.80083,3364.3,3363.3,0.43389571]
[1734985623191,3.80113,3364.0,3362.9,0.7625]
[1734985623333,0.8284,3364.0,3362.5,3.7364]
[1734985623532,0.8284,3364.0,3362.4,0.02972959]
[1734985623533,2.97273,3363.9,3362.4,2.97405]
[1734985623791,0.55,3363.7,3362.4,2.97398]
[1734985624093,0.7698,3363.8,3362.5,2.97389]
[1734985624234,0.7698,3363.6,3362.2,1.37276806]
[1734985624435,2.97309,3363.5,3362.4,2.97405]
[1734985624641,0.8225,3363.4,3362.4,0.43468181]
[1734985624993,0.429289,3363.5,3361.4,0.8221]
[1734985624994,0.8225,3363.1,3361.4,0.8221]
[1734985625194,0.8225,3362.7,3361.5,0.59537039]
[1734985625356,0.8225,3362.7,3361.6,2.97474]
[1734985625559,3.79636,3362.7,3361.6,2.97474]
[1734985625742,3.79636,3362.7,3361.7,2.97467]
[1734985625987,0.8225,3362.7,3361.7,2.97467]
[1734985626494,0.7522,3363.3,3362.7,2.9738]
[1734985626638,0.7522,3363.7,3363.0,3.00725439]
[1734985626838,0.7522,3363.7,3363.1,0.62781123]
[1734985627077,0.7522,3363.7,3363.4,2.97309]
[1734985627305,0.7522,3363.7,3363.2,2.97335]
[1734985627641,0.7522,3363.7,3363.1,3.57148244]
[1734985627988,0.7864,3364.2,3363.5,2.97301]
[1734985628143,0.7864,3364.2,3363.6,0.297301]
[1734985628339,0.7864,3364.2,3363.1,0.59808244]
[1734985628340,1.49617929,3364.4,3363.5,3.00725439]
[1734985628653,1.49617929,3364.4,3363.5,6.01004484]
[1734985628654,0.26052815,3364.4,3363.5,6.01004484]
[1734985628835,0.26052815,3364.4,3363.8,2.97275]
[1734985629486,0.26052815,3364.4,3363.3,3.77021]
[1734985629646,0.26052815,3364.4,3363.6,2.97295]
[1734985629848,0.26052815,3364.4,3363.8,2.97281]
[1734985630041,0.26052815,3364.4,3363.7,0.30026718]
[1734985631087,0.26052815,3364.4,3363.7,3.27316718]
[1734985631909,0.7988,3364.3,3363.7,0.30026718]
[1734985632118,0.7988,3364.3,3363.3,0.797]
[1734985632258,0.7988,3364.3,3363.1,0.59808244]
[1734985632259,2.97263,3364.1,3363.1,0.59808244]
[1734985632658,2.97263,3364.1,3362.8,0.7752]
[1734985633515,2.97247,3364.2,3362.8,0.7752]
[1734985633861,2.97247,3364.2,3363.0,5.9735]
[1734985634194,0.7988,3364.3,3363.0,3.0]
[1734985634358,2.97272,3364.0,3362.9,3.0]
[1734985634561,0.26052815,3364.4,3363.4,3.00725439]
[1734985634760,0.26052815,3364.4,3363.8,3.00725439]
[1734985635011,0.26052815,3364.4,3364.0,2.97257]
[1734985635561,0.26052815,3364.4,3364.1,2.97256]
[1734985635771,0.26052815,3364.4,3364.2,2.97246]
[1734985636111,0.26052815,3364.4,3364.3,3.269626]
[1734985636819,0.26052815,3364.4,3364.3,4.044826]
[1734985639443,0.7988,3365.4,3364.3,0.297246]
[1734985639649,0.7988,3365.4,3364.1,2.97253]
[1734985639810,0.8329,3365.2,3363.7,2.97291]
[1734985640145,0.8329,3365.2,3364.0,2.97265]
[1734985640299,0.8329,3365.2,3363.9,2.97268]
[1734985640300,0.8329,3365.2,3364.2,2.97239]
[1734985640496,0.55,3365.1,3363.8,2.97279]
[1734985640844,0.55,3365.1,3363.5,0.58966711]
[1734985640845,2.97204,3364.7,3363.1,2.97336]
[1734985640993,0.8329,3364.5,3363.2,0.75669807]
[1734985641454,0.8329,3364.5,3363.4,2.97309]
[1734985641742,0.8329,3364.5,3363.3,2.97327]
[1734985641917,0.8329,3364.5,3363.4,0.02972566]
[1734985642108,0.8329,3364.5,3363.2,0.78642081]
[1734985642410,0.8329,3364.5,3364.3,2.9723]
[1734985642612,0.8329,3365.4,3363.7,0.8040205]
[1734985642807,0.8329,3365.2,3363.7,0.8040205]
[1734985643099,2.97169,3365.1,3364.0,2.97257]
[1734985643335,0.8329,3365.0,3363.8,2.97281]
[1734985643535,0.380459,3364.9,3363.8,2.97281]
[1734985643845,0.380459,3364.9,3363.3,2.05634285]
[1734985643846,0.8329,3364.8,3363.3,2.05634285]
[1734985643995,0.8329,3364.8,3363.4,2.97313]
[1734985644191,0.8329,3364.8,3363.5,0.02972179]
[1734985644464,2.97149,3365.4,3363.5,0.02972179]
[1734985644465,2.06855114,3365.4,3364.3,2.97238]
[1734985644622,0.297149,3365.3,3364.3,2.97238]
[1734985644960,0.297149,3365.3,3363.9,0.7743]
[1734985645157,0.297149,3365.3,3364.2,2.97243]
[1734985645509,0.297149,3365.3,3364.3,2.97236]
[1734985645713,2.97179,3365.0,3363.5,3.7743]
[1734985645943,0.8329,3364.7,3363.3,0.67670452]
[1734985646270,0.8329,3364.3,3363.3,3.64988452]
[1734985646562,0.8329,3364.2,3363.1,1.23415423]
[1734985647063,0.8329,3364.2,3363.4,2.97314]
[1734985647766,0.8329,3364.2,3362.8,3.0]
[1734985647931,0.8329,3364.2,3363.0,2.97353]
[1734985648136,0.8329,3364.2,3363.3,2.97322]
[1734985648459,0.8329,3364.2,3363.3,3.270542]
[1734985648968,0.8329,3364.2,3363.3,0.297322]
[1734985649170,0.8329,3364.2,3363.4,2.97315]
[1734985650566,0.8329,3364.2,3363.5,2.97307]
[1734985650718,0.8329,3364.2,3363.5,2.97305]
[1734985654073,1.23565114,3364.7,3364.0,3.00725439]
[1734985654217,1.23565114,3364.7,3364.6,2.97212]
[1734985654421,1.23565114,3364.7,3364.6,6.647703]
[1734985655724,0.8072,3365.5,3365.1,2.97166]
[1734985656327,0.8072,3365.5,3364.6,0.675583]
[1734985656523,0.8072,3365.5,3364.9,2.97181]
[1734985657938,0.8072,3365.5,3364.6,0.675583]
[1734985658142,0.7652,3365.4,3364.4,2.97227]
[1734985658674,0.7652,3365.4,3364.2,0.59525157]
[1734985659171,0.769,3366.1,3364.9,2.97177]
[1734985659324,1.23565114,3366.3,3364.9,2.97177]
[1734985659325,0.769,3365.9,3364.9,2.97182]
[1734985659534,2.00465114,3365.9,3364.9,2.97182]
[1734985659734,2.93839603,3365.9,3364.4,3.0]
[1734985660141,2.93839603,3365.9,3365.1,2.97164]
[1734985660370,1.23565114,3365.9,3364.9,2.97185]
[1734985660574,1.23565114,3365.9,3365.8,2.97106]
[1734985661051,1.23565114,3365.9,3365.6,2.97123]
[1734985661282,2.06245114,3366.2,3365.6,2.97123]
[1734985661650,1.23565114,3366.2,3365.6,2.97123]
[1734985661849,1.23565114,3366.2,3365.7,3.268213]
[1734985662076,1.23565114,3366.2,3366.0,2.97088]
[1734985662271,1.23565114,3366.2,3365.7,0.297123]
[1734985662673,1.23565114,3366.2,3365.4,2.97139]
[1734985662858,0.8268,3365.8,3364.7,2.97201]
[1734985663475,0.55,3365.7,3364.7,2.97201]
[1734985663681,0.55,3365.7,3364.6,1.23415423]
[1734985663682,2.97124,3365.6,3364.6,1.23415423]
[1734985663894,1.164824,3365.5,3364.6,1.23415423]
[1734985664077,0.8127,3365.4,3364.3,2.97236]
[1734985664278,0.8127,3364.9,3363.5,1.23415423]
[1734985664481,0.55,3364.7,3363.5,1.23415423]
[1734985664642,0.8127,3364.9,3364.1,2.97251]
[1734985665047,1.19113,3364.9,3364.1,2.97251]
[1734985665289,0.8127,3364.9,3364.3,2.97237]
[1734985665491,0.8127,3364.9,3364.4,2.97227]
[1734985666547,0.8127,3364.9,3364.4,2.97224]
[1734985666792,0.8127,3364.9,3364.1,2.97253]
[1734985667001,3.78459,3364.9,3363.4,3.0]
[1734985667206,0.378459,3364.8,3363.5,0.73933198]
[1734985667566,0.8127,3364.9,3363.7,2.97291]
[1734985667861,0.7924,3364.6,3363.5,3.71242198]
[1734985668313,0.818,3364.4,3363.4,2.97315]
[1734985668591,0.818,3364.4,3363.5,2.97308]
[1734985668798,3.79031,3364.4,3362.9,3.76585439]
[1734985669004,2.97239,3364.3,3363.1,2.97343]
[1734985669153,0.818,3364.4,3363.3,2.97325]
[1734985669347,0.379022,3364.3,3363.3,2.97325]
[1734985670249,0.818,3364.4,3363.6,2.97292]
[1734985670697,0.818,3364.4,3363.4,2.97318]
[1734985670926,0.818,3364.4,3363.8,2.97279]
[1734985671702,0.818,3364.4,3363.9,2.97273]
[1734985671903,0.818,3364.4,3363.4,2.97318]
[1734985672108,0.7888,3364.7,3364.3,2.97229]
[1734985672590,0.7888,3364.7,3364.3,2.97232]
[1734985672931,0.7888,3364.7,3363.6,0.8063]
[1734985673137,0.7888,3364.7,3364.3,2.97235]
[1734985673637,0.7888,3364.7,3363.6,0.8063]
[1734985673638,0.7888,3364.7,3364.1,2.97255]
[1734985673805,0.7888,3364.7,3364.1,0.297255]
[1734985674132,0.7888,3364.7,3363.6,0.83602157]
[1734985674452,0.7888,3364.7,3364.4,2.97228]
[1734985674635,0.829,3365.3,3364.6,2.97212]
[1734985674936,2.06465114,3365.3,3364.6,2.97212]
[1734985675838,0.829,3365.2,3364.1,2.97248]
[1734985675985,0.829,3365.2,3363.8,0.60149613]
[1734985676189,0.829,3365.2,3364.3,2.97237]
[1734985676587,0.829,3365.2,3364.5,2.97218]
[1734985677535,0.829,3365.2,3364.0,2.97259]
[1734985677688,0.829,3365.2,3364.2,2.97246]
[1734985677885,1.33261711,3365.2,3364.3,2.97235]
[1734985678340,0.7708,3365.1,3364.3,2.97235]
[1734985679864,0.7708,3365.1,3364.0,0.02972124]
[1734985680157,0.7708,3365.1,3364.6,2.9721]
[1734985680309,0.7708,3365.1,3364.5,2.97217]
[1734985681021,0.7708,3365.1,3364.6,2.97211]
[1734985682719,0.7708,3365.1,3364.9,2.97185]
[1734985683488,0.7708,3365.1,3365.0,2.97176]
[1734985684435,0.7708,3365.1,3364.8,2.9719]
[1734985685081,0.7708,3365.1,3364.6,0.297211]
[1734985685276,0.7708,3365.1,3364.7,2.97194]
[1734985685994,0.7641,3365.7,3364.8,0.3269151]
[1734985686177,0.7641,3365.7,3365.0,2.97173]
[1734985686382,0.7641,3365.7,3364.6,3.269281]
[1734985686383,0.7641,3365.7,3364.8,2.9719]
[1734985686569,1.99975114,3365.7,3364.9,2.97185]
[1734985687480,0.55,3365.6,3365.0,2.97168]
[1734985687850,0.7641,3365.7,3365.0,0.297168]
[1734985688194,0.7641,3365.7,3365.4,2.9714]
[1734985688367,0.7641,3365.7,3364.2,5.9724]
[1734985688683,0.82,3365.4,3364.4,2.97224]
[1734985688846,0.82,3365.4,3364.2,2.97245]
[1734985689048,0.82,3365.4,3363.9,1.23415423]
[1734985689049,0.82,3364.9,3363.9,1.23415423]
[1734985689275,0.82,3364.7,3363.9,1.23415423]
[1734985689583,0.82,3364.2,3363.9,1.23415423]
[1734985689998,0.55,3364.1,3363.4,2.97317]
[1734985691367,0.55,3364.1,3363.3,2.97319]
[1734985691694,0.55,3364.1,3362.8,0.8125]
[1734985691980,0.7734,3363.8,3362.9,0.38125]
[1734985692185,0.7734,3363.8,3363.2,2.97335]
[1734985692730,0.7734,3363.8,3363.3,2.97319]
[1734985693179,0.7734,3363.8,3363.0,2.97353]
[1734985693402,0.7734,3363.8,3362.9,0.38125]
[1734985693403,0.7734,3363.8,3362.9,3.97973927]
[1734985693536,0.8047,3364.5,3363.2,2.97335]
[1734985693735,0.8047,3364.5,3363.0,0.69535293]
[1734985694093,0.7721,3364.0,3363.0,2.97344]
[1734985694381,0.7721,3364.0,3363.2,2.97335]
[1734985694593,0.7721,3364.0,3362.9,0.59123488]
[1734985694886,0.7721,3364.0,3363.7,2.9729]
[1734985695038,0.7721,3364.0,3362.9,0.62096687]
[1734985695039,0.7721,3364.0,3363.9,2.97273]
[1734985695239,0.7721,3364.0,3363.9,3.567296]
[1734985695439,0.7721,3364.0,3363.9,2.97273]
[1734985696153,0.7721,3364.0,3363.5,2.97307]
[1734985696154,0.7721,3364.0,3363.6,2.97298]
[1734985696751,0.7721,3364.0,3363.7,2.97291]
[1734985696954,0.7721,3364.0,3363.9,2.97273]
[1734985697476,0.7803,3364.6,3363.9,2.97273]
[1734985697681,0.7803,3364.6,3364.0,0.02972284]
[1734985697863,0.7803,3364.6,3363.9,2.97273]
[1734985698067,0.7803,3364.6,3364.0,2.97256]
[1734985698274,0.7803,3364.6,3363.5,3.0]
[1734985698483,0.7803,3364.6,3363.4,2.97312]
[1734985698694,0.68573531,3364.6,3363.5,0.297312]
[1734985698895,0.7803,3364.5,3363.8,2.97282]
[1734985699267,0.7803,3364.5,3363.9,2.97273]
[1734985699664,0.7803,3364.5,3363.5,0.297312]
[1734985699867,0.7803,3364.5,3363.7,2.97291]
[1734985700064,0.7803,3364.5,3363.5,0.297312]
[1734985700065,0.7803,3364.5,3363.9,2.97272]
[1734985700674,0.7803,3364.5,3363.7,2.97284]
[1734985701502,0.7803,3364.5,3363.8,2.97275]
[1734985703260,0.7803,3364.5,3363.5,0.297312]
[1734985703595,0.7803,3364.5,3363.4,2.97312]
[1734985703596,0.7803,3364.5,3363.8,2.97277]
[1734985704171,0.7803,3364.5,3364.1,2.97255]
[1734985705719,0.7803,3364.5,3363.7,2.97291]
[1734985705720,0.55,3364.2,3362.9,0.59123488]
[1734985706007,0.55,3364.2,3363.1,2.97337]
[1734985706310,0.795,3364.3,3364.0,2.97257]
[1734985706805,0.795,3364.3,3363.8,2.97277]
[1734985706960,0.795,3364.3,3363.2,0.3594335]
[1734985707166,0.795,3364.3,3363.3,2.97327]
[1734985707602,0.795,3364.3,3363.9,2.97268]
[1734985707904,0.795,3364.3,3363.3,2.97327]
[1734985708121,0.795,3364.3,3364.1,2.97254]
[1734985708463,0.759,3364.6,3364.2,2.97247]
[1734985708671,0.759,3364.6,3363.5,0.7659]
[1734985708871,0.759,3364.6,3363.4,3.30638035]
[1734985709093,0.19946511,3364.5,3363.4,0.33327035]
[1734985709318,0.19946511,3364.5,3363.9,2.97273]
[1734985709702,0.759,3364.4,3363.3,2.97327]
[1734985709882,0.759,3364.4,3363.1,3.77126]
[1734985710091,0.55,3364.3,3363.1,3.77126]
[1734985710304,0.55,3364.3,3363.6,2.97292]
[1734985710921,0.55,3364.3,3363.3,0.41306935]
[1734985711217,0.55,3364.3,3363.7,2.97289]
[1734985711590,0.55,3364.3,3363.3,2.97323]
[1734985711786,0.55,3364.3,3363.7,2.97283]
[1734985712738,0.759,3364.4,3363.3,3.00725439]
[1734985712945,1.23565114,3364.5,3364.4,2.97229]
[1734985713247,1.23565114,3364.5,3364.4,3.566757]
[1734985713945,1.23565114,3365.0,3364.7,2.97203]
[1734985714246,1.23565114,3365.0,3364.9,2.97185]
[1734985714751,1.23565114,3365.0,3364.9,5.51373543]
[1734985714968,1.28477878,3365.4,3365.3,2.9715]
[1734985715116,1.28477878,3365.4,3365.3,6.31738543]
[1734985715320,2.5133866,3366.6,3365.3,6.31738543]
[1734985715321,1.24629524,3365.5,3365.4,2.97141]
[1734985715632,5.24e-06,3365.5,3365.4,3.63959875]
[1734985715849,5.72e-06,3365.9,3365.8,2.97106]
[1734985716364,4.5e-06,3366.0,3365.8,2.97106]
[1734985716575,8.32e-06,3366.3,3366.2,2.9707]
[1734985716868,8.32e-06,3366.3,3366.1,3.16767735]
[1734985716869,0.625,3367.0,3366.7,2.97026]
[1734985717013,0.8137,3366.9,3366.0,0.804]
[1734985717563,0.8137,3366.9,3366.6,2.97032]
[1734985718534,0.8137,3366.9,3366.7,2.97026]
[1734985719963,0.005,3366.9,3366.7,2.97026]
[1734985720369,0.005,3366.9,3366.0,0.804]
[1734985720550,0.8321,3366.7,3366.2,2.9707]
[1734985720746,1.01600179,3366.7,3365.6,0.7726]
[1734985720946,1.01600179,3366.7,3366.1,2.97077]
[1734985721136,1.01600179,3366.7,3366.2,2.97068]
[1734985722032,1.01600179,3366.7,3365.6,0.7726]
[1734985722033,0.8321,3366.7,3365.8,2.97099]
[1734985722273,0.8321,3366.7,3366.6,2.97035]
[1734985723467,0.8321,3366.7,3365.8,2.97099]
[1734985723850,0.8321,3366.7,3365.9,2.97096]
[1734985724052,0.8321,3366.7,3366.3,2.97053]
[1734985724251,0.8321,3366.7,3365.6,0.7726]
[1734985724451,0.8321,3366.7,3366.2,2.97063]
[1734985724871,0.8321,3366.7,3365.6,0.7726]
[1734985725075,0.8321,3366.7,3366.1,2.97077]
[1734985725674,0.8321,3366.7,3365.7,5.9423]
[1734985725882,0.8321,3366.7,3366.1,2.97072]
[1734985726469,0.8321,3366.7,3366.1,2.97079]
[1734985726781,0.55,3366.6,3365.4,0.66818875]
[1734985726935,0.17590179,3366.5,3365.3,0.7746]
[1734985727132,0.8321,3366.7,3365.3,0.7746]
[1734985727369,0.8321,3366.7,3365.4,2.97141]
[1734985728377,0.8321,3366.7,3366.1,2.97071]
[1734985729854,0.8321,3366.7,3365.3,6.94227735]
[1734985730050,0.005,3366.9,3366.7,2.97026]
[1734985730340,0.005,3366.9,3366.7,3.267286]
[1734985733363,0.005,3366.9,3366.8,2.97017]
[1734985735704,0.168124,3367.7,3366.8,2.97017]
[1734985735705,0.168124,3367.7,3367.6,2.96947]
[1734985736271,0.168124,3367.7,3367.6,3.78557]
[1734985736599,4e-06,3367.7,3367.6,4.46406091]
[1734985737408,4e-06,3367.7,3367.6,3.64796091]
[1734985738622,4e-06,3367.7,3367.2,2.96981]
[1734985738841,4e-06,3367.7,3367.0,2.97]
[1734985739048,4e-06,3367.7,3367.4,0.8161]
[1734985739200,4e-06,3367.7,3367.5,0.02968948]
[1734985739930,4e-06,3367.7,3367.4,0.8161]
[1734985740092,4e-06,3367.7,3367.5,0.72806722]
[1734985740288,4e-06,3367.7,3367.6,2.96947]
[1734985744456,4e-06,3367.7,3367.4,2.96963]
[1734985745733,4e-06,3367.7,3367.5,2.96954]
[1734985746249,4e-06,3367.7,3367.5,2.96949]
[1734985746634,4e-06,3367.7,3366.9,3.74963972]
[1734985746797,4e-06,3367.7,3367.5,2.96948]
[1734985747433,4e-06,3367.7,3367.0,1.07834557]
[1734985747651,0.8281,3367.6,3367.0,2.96994]
[1734985748354,0.8281,3367.6,3366.5,0.8239]
[1734985748504,0.8281,3367.6,3366.9,2.97007]
[1734985748858,0.8281,3367.6,3367.0,2.96999]
[1734985749021,0.8281,3367.6,3366.5,0.8239]
[1734985749203,0.8281,3367.6,3366.5,0.379439]
[1734985749400,0.8281,3367.6,3366.2,0.58393334]
[1734985749601,0.8281,3367.5,3366.4,2.9705]
[1734985749833,0.8281,3367.5,3366.2,2.9707]
[1734985750037,0.8126,3367.2,3365.7,4.37828253]
[1734985750257,0.8126,3367.2,3366.2,2.97067]
[1734985750416,0.8126,3367.2,3366.7,2.97025]